fUST/lending_fUST_20240722
["ID","MTS","AMOUNT","RATE_DAILY","PERIOD"]
[332879612,1721615452851,-486.95743884,0.00013972,2]
[332879613,1721615452863,-505.05266424,0.00013972,2]
[332879614,1721615452874,-506.55975454,0.00013972,2]
[332879615,1721615452886,-502.11275608,0.00013972,2]
[332879616,1721615452897,-500.0,0.00013972,2]
[332879617,1721615452908,-263.90619435,0.00013972,2]
[332879618,1721615452919,-501.3515465,0.00013972,2]
[332879619,1721615452931,-503.69585459,0.00013972,2]
[332879620,1721615452943,-500.0,0.00013972,2]
[332879621,1721615452957,-500.0,0.00013972,2]
[332879622,1721615452968,-500.0,0.00013972,2]
[332879623,1721615452983,-500.0,0.00013972,2]
[332879624,1721615452995,-505.67448282,0.00013972,2]
[332879625,1721615453005,-500.0,0.00013972,2]
[332879626,1721615453015,-150.112233,0.00014,5]
[332879627,1721615453027,-150.112233,0.00014,5]
[332879628,1721615453039,-150.112233,0.000142,2]
[332879629,1721615453051,-150.112233,0.000142,3]
[332879630,1721615453062,-500.0,0.00014246,2]
[332879631,1721615453075,-500.0,0.00014246,2]
[332879632,1721615453087,-500.0,0.00014246,2]
[332879633,1721615453098,-500.0,0.00014246,2]
[332879634,1721615453109,-1523.47,0.00014246,2]
[332879635,1721615453122,-403.13224338,0.00014246,2]
[332879636,1721615453134,-500.0,0.00014246,2]
[332879637,1721615453147,-500.0,0.00014246,2]
[332879638,1721615453159,-500.0,0.00014246,2]
[332879639,1721615453173,-500.0,0.00014246,2]
[332879640,1721615453184,-500.0,0.00014246,2]
[332879641,1721615453194,-500.0,0.00014246,2]
[332879642,1721615453205,-526.44028776,0.00014246,2]
[332879643,1721615453215,-500.0,0.00014246,2]
[332879644,1721615453225,-500.0,0.00014246,2]
[332879645,1721615453235,-602.90587554,0.00014246,2]
[332879646,1721615453248,-500.0,0.00014246,2]
[332879647,1721615453259,-500.0,0.00014246,2]
[332879648,1721615453271,-500.0,0.00014246,2]
[332879649,1721615453283,-915.74,0.00014246,2]
[332879650,1721615453292,-202.24956217,0.00014246,2]
[332879651,1721615453303,-500.0,0.00014246,2]
[332879652,1721615453315,-222.11228454,0.00014246,2]
[332879653,1721615453327,-277.53068773,0.00014246,2]
[332879654,1721615453337,-500.0,0.00014246,2]
[332879655,1721615453350,-500.0,0.00014246,2]
[332879656,1721615453361,-500.0,0.00014246,2]
[332879657,1721615453372,-500.0,0.00014246,2]
[332879658,1721615453382,-500.0,0.00014246,2]
[332879659,1721615453392,-500.0,0.00014246,2]
[332879660,1721615453403,-500.0,0.00014246,2]
[332879661,1721615453414,-500.0,0.00014246,2]
[332879662,1721615453424,-387.08290274,0.00014246,2]
[332879663,1721615453435,-500.0,0.00014246,2]
[332879664,1721615453448,-1169.38,0.00014246,2]
[332879665,1721615453459,-500.0,0.00014246,2]
[332879666,1721615453470,-426.9875411,0.00014246,2]
[332879667,1721615453484,-500.0,0.00014246,2]
[332879668,1721615453495,-500.0,0.00014246,2]
[332879669,1721615453506,-504.23846723,0.00014246,2]
[332879670,1721615453517,-500.0,0.00014246,2]
[332879671,1721615453528,-516.05163371,0.00014246,2]
[332879672,1721615453539,-505.03987789,0.00014246,2]
[332879673,1721615453551,-548.85729338,0.00014246,2]
[332879674,1721615453562,-359.23854991,0.00014246,2]
[332879675,1721615453574,-500.0,0.00014246,2]
[332879676,1721615453584,-500.0,0.00014246,2]
[332879677,1721615453595,-500.0,0.00014246,2]
[332879678,1721615453606,-500.0,0.00014246,2]
[332879679,1721615453617,-500.0,0.00014246,2]
[332879680,1721615453628,-562.34093749,0.00014246,2]
[332879681,1721615453638,-500.0,0.00014246,2]
[332879682,1721615453649,-500.0,0.00014246,2]
[332879683,1721615453659,-500.0,0.00014246,2]
[332879684,1721615453670,-500.0,0.00014246,2]
[332879685,1721615453682,-500.0,0.00014246,2]
[332879686,1721615453692,-416.24009137,0.00014246,2]
[332879687,1721615453704,-466.08530162,0.00014246,2]
[332879688,1721615453715,-500.0,0.00014246,2]
[332879689,1721615453725,-500.0,0.00014246,2]
[332879690,1721615453735,-500.0,0.00014246,2]
[332879691,1721615453746,-500.0,0.00014246,2]
[332879692,1721615453756,-513.71621336,0.00014246,2]
[332879693,1721615453767,-500.0,0.00014246,2]
[332879694,1721615453778,-500.0,0.00014246,2]
[332879695,1721615453789,-434.70757458,0.00014246,2]
[332879696,1721615453799,-500.0,0.00014246,2]
[332879697,1721615453811,-500.0,0.00014246,2]
[332879698,1721615453821,-355.08674039,0.00014246,2]
[332879699,1721615453832,-503.40893604,0.00014246,2]
[332879700,1721615453843,-188.31880094,0.00014246,2]
[332879701,1721615453854,-500.0,0.00014246,2]
[332879702,1721615453865,-500.0,0.00014246,2]
[332879703,1721615453876,-426.13187059,0.00014246,2]
[332879704,1721615453887,-640.12938596,0.00014246,2]
[332879705,1721615453898,-506.18152039,0.00014246,2]
[332879706,1721615453909,-505.17172278,0.00014246,2]
[332879707,1721615453920,-508.65367248,0.00014246,2]
[332879708,1721615453931,-500.0,0.00014246,2]
[332879709,1721615453942,-500.0,0.00014246,2]
[332879710,1721615453954,-538.3886222,0.00014246,2]
[332879711,1721615453965,-503.90397605,0.00014246,2]
[332879712,1721615453976,-545.96339969,0.00014246,2]
[332879713,1721615453987,-500.0,0.00014246,2]
[332879714,1721615454001,-500.0,0.00014246,2]
[332879715,1721615454013,-500.0,0.00014246,2]
[332879716,1721615454024,-241.89933819,0.00014246,2]
[332879717,1721615454034,-500.0,0.00014246,2]
[332879718,1721615454046,-234.04,0.00014246,2]
[332879719,1721615454057,-500.0,0.00014246,2]
[332879720,1721615454068,-500.0,0.00014246,2]
[332879721,1721615454080,-393.37612131,0.00014246,2]
[332879722,1721615454091,-500.0,0.00014246,2]
[332879723,1721615454102,-500.0,0.00014246,2]
[332879724,1721615454112,-500.0,0.00014246,2]
[332879725,1721615454123,-500.0,0.00014246,2]
[332879726,1721615454134,-500.0,0.00014246,2]
[332879727,1721615454145,-508.24205498,0.00014246,2]
[332879728,1721615454157,-500.0,0.00014246,2]
[332879729,1721615454169,-355.63183445,0.00014246,2]
[332879730,1721615454180,-412.51427903,0.00014246,2]
[332879731,1721615454192,-173.97058623,0.00014246,2]
[332879732,1721615454203,-532.22858355,0.00014246,2]
[332879733,1721615454214,-282.76921526,0.00014246,2]
[332879734,1721615454226,-328.50859414,0.00014246,2]
[332879735,1721615454238,-500.0,0.00014246,2]
[332879736,1721615454250,-153.01673858,0.00014246,2]
[332879737,1721615454262,-500.0,0.00014246,2]
[332879738,1721615454275,-504.60706812,0.00014246,2]
[332879739,1721615454288,-527.0046201,0.00014246,2]
[332879740,1721615454299,-500.0,0.00014246,2]
[332879741,1721615454310,-500.0,0.00014246,2]
[332879742,1721615454322,-500.0,0.00014246,2]
[332879743,1721615454335,-153.48197831,0.00014246,2]
[332879744,1721615454347,-750.0,0.00014247,2]
[332879745,1721615454359,-150.112233,0.000144,2]
[332879746,1721615454371,-150.112233,0.000144,4]
[332879747,1721615454382,-1409.0,0.00014489,2]
[332879748,1721615454395,-151.285,0.00014489,2]
[332879749,1721615454406,-352.12980384,0.00014489,2]
[332879750,1721615499641,190.64765543,0.000225,30]
[332879815,1721616640614,-300.0,9.998e-05,2]
[332879816,1721616640624,-154.80649189,9.999e-05,2]
[332879817,1721616640633,-154.88463235,9.999e-05,2]
[332879818,1721616640642,-540.45129509,9.999e-05,2]
[332879819,1721616640651,-255.15754295,9.999e-05,2]
[332879820,1721616640661,-188.02900327,9.999e-05,2]
[332879821,1721616640670,-266.34404035,9.999e-05,2]
[332879822,1721616640679,-429.20536052,9.999e-05,2]
[332879823,1721616640688,-404.3074502,9.999e-05,2]
[332879824,1721616640698,-663.51231387,9.999e-05,2]
[332879825,1721616640707,-433.192655,9.999e-05,2]
[332879826,1721616640717,-318.07462538,9.999e-05,2]
[332879827,1721616640726,-413.45473308,9.999e-05,2]
[332879828,1721616640735,-5.59545182,9.999e-05,2]
[332879829,1721616640746,-246.30526695,9.999e-05,2]
[332879830,1721616640755,-154.80649189,9.999e-05,2]
[332879831,1721616640765,-208.54118651,9.999e-05,2]
[332879832,1721616640775,-279.24243998,9.999e-05,2]
[332879833,1721616640784,-320.12993384,9.999e-05,2]
[332879834,1721616640794,-154.80649189,0.0001,2]
[332879835,1721616640803,-824.6091137,0.00010029,2]
[332879836,1721616640813,-24900.0,0.00010634,2]
[332879837,1721616640822,-3763.0819323,0.00010731,2]
[332879838,1721616640831,-217.45,0.00010959,2]
[332879839,1721616640840,-420.0,0.00010998,2]
[332879840,1721616640850,-250.0,0.00011262,2]
[332879841,1721616640859,-250.0,0.00011293,2]
[332879842,1721616640868,-250.0,0.00011324,2]
[332879843,1721616640877,-250.0,0.00011355,2]
[332879844,1721616640887,-2736.4441857,0.00011377,2]
[332879845,1721616640896,-250.0,0.00011385,2]
[332879846,1721616640906,-250.0,0.00011416,2]
[332879847,1721616640915,-550.0,0.00011426,2]
[332879848,1721616640923,-250.0,0.00011447,2]
[332879849,1721616640932,-250.0,0.00011478,2]
[332879850,1721616640942,-250.0,0.00011509,2]
[332879851,1721616640951,-250.0,0.0001154,2]
[332879852,1721616640960,-250.0,0.00011571,2]
[332879853,1721616640970,-250.0,0.00011602,2]
[332879854,1721616640979,-250.0,0.00011632,2]
[332879855,1721616640989,-250.0,0.00011663,2]
[332879856,1721616640998,-250.0,0.00011694,2]
[332879857,1721616641007,-250.0,0.00011725,2]
[332879858,1721616641016,-250.0,0.00011756,2]
[332879859,1721616641025,-250.0,0.00011787,2]
[332879860,1721616641034,-250.0,0.00011818,2]
[332879861,1721616641044,-250.0,0.00011849,2]
[332879862,1721616641053,-587.0,0.00012098,2]
[332879863,1721616641062,-823.0,0.00013307,2]
[332879864,1721616641072,-900.60884208,0.00013598,2]
[332879865,1721616641081,-114802.6670137,0.00013688,2]
[332879879,1721616646927,-713.95940823,0.00013688,2]
[332879881,1721616646940,-2623.6101165,0.00013688,2]
[332879920,1721617833079,-887.61771083,9.899e-05,2]
[332879921,1721617833090,-300.0,9.998e-05,2]
[332879922,1721617833099,-154.80649189,9.999e-05,2]
[332879923,1721617833109,-328.03206869,9.999e-05,2]
[332879924,1721617833118,-154.80649189,9.999e-05,2]
[332879925,1721617833128,-205.95707318,9.999e-05,2]
[332879926,1721617833138,-155.02203028,9.999e-05,2]
[332879927,1721617833148,-663.51231387,9.999e-05,2]
[332879928,1721617833157,-155.43614912,9.999e-05,2]
[332879929,1721617833167,-49.57383476,9.999e-05,2]
[332879930,1721617833180,-354.73361544,9.999e-05,2]
[332879931,1721617833190,-413.45473308,9.999e-05,2]
[332879932,1721617833200,-208.54118651,9.999e-05,2]
[332879933,1721617833210,-27.52046512,9.999e-05,2]
[332879956,1721617840083,-160.50853815,9.999e-05,2]
[332879957,1721617840094,-260.68274275,9.999e-05,2]
[332879958,1721617840105,-154.80649189,9.999e-05,2]
[332879959,1721617840115,-154.80649189,9.999e-05,2]
[332879960,1721617840124,-154.80649189,0.0001,2]
[332879961,1721617840134,-17277.02917617,0.00010934,2]
[332879996,1721617841140,-7622.97082383,0.00010934,2]
[332879997,1721617841149,-420.0,0.00010998,2]
[332879998,1721617841160,-191.184902,0.00011752,2]
[332879999,1721617841171,-191.184902,0.00011784,2]
[332880000,1721617841181,-191.184902,0.00011816,2]
[332880001,1721617841194,-191.184902,0.00011848,2]
[332880002,1721617841205,-191.184902,0.00011881,2]
[332880003,1721617841214,-191.184902,0.00011913,2]
[332880004,1721617841225,-191.184902,0.00011945,2]
[332880005,1721617841235,-191.184902,0.00011977,2]
[332880006,1721617841246,-191.184902,0.0001201,2]
[332880007,1721617841255,-191.184902,0.00012042,2]
[332880008,1721617841265,-191.184902,0.00012074,2]
[332880009,1721617841275,-587.0,0.00012098,2]
[332880010,1721617841284,-191.184902,0.00012106,2]
[332880011,1721617841294,-191.184902,0.00012138,2]
[332880012,1721617841305,-191.184902,0.00012171,2]
[332880013,1721617841315,-191.184902,0.00012203,2]
[332880014,1721617841325,-191.184902,0.00012235,2]
[332880015,1721617841334,-191.184902,0.00012267,2]
[332880016,1721617841343,-191.184902,0.000123,2]
[332880017,1721617841354,-191.184902,0.00012332,2]
[332880018,1721617841366,-191.184902,0.00012364,2]
[332880019,1721617841376,-3372.596471,0.000129,2]
[332880020,1721617841387,-3372.59647097,0.00012977,2]
[332880021,1721617841397,-5304.84073988,0.00013243,2]
[332880022,1721617841407,-367.39222983,0.000133,2]
[332880023,1721617841417,-754.0,0.00013307,2]
[332880024,1721617841427,-335.9994844,0.00013347,2]
[332880025,1721617841439,-2000.0,0.00013578,2]
[332880026,1721617841450,-1130.7352977,0.00013598,2]
[332880027,1721617841461,-25257.24042964,0.000136,2]
[332880028,1721617841474,-153.0,0.00013634,2]
[332880029,1721617841487,-409410.124489,0.00013678,2]
[332880030,1721617841496,-154.85621034,0.00013688,2]
[332880031,1721617841506,-65266.24531063,0.00013688,2]
[332880050,1721617844247,-376.29598389,9.999e-05,2]
[332880052,1721617844258,-3113.14248656,0.00013688,2]
[332880062,1721617845075,-74711.58429998,0.00013688,2]
[332880074,1721617847167,-9424.7986863,0.00013688,2]
[332880145,1721619038611,-154.80649189,9.999e-05,2]
[332880146,1721619038621,-392.40605053,9.999e-05,2]
[332880147,1721619038631,-154.88482645,9.999e-05,2]
[332880148,1721619038641,-431.5529283,9.999e-05,2]
[332880149,1721619038651,-163.03561897,9.999e-05,2]
[332880150,1721619038665,-205.73216925,9.999e-05,2]
[332880151,1721619038674,-195.70767386,9.999e-05,2]
[332880152,1721619038685,-285.66218946,9.999e-05,2]
[332880153,1721619038694,-202.78437057,9.999e-05,2]
[332880154,1721619038705,-156.12840116,9.999e-05,2]
[332880155,1721619038715,-208.54118651,9.999e-05,2]
[332880156,1721619038724,-188.02900327,9.999e-05,2]
[332880157,1721619038734,-309.42755902,9.999e-05,2]
[332880158,1721619038743,-310.82197568,9.999e-05,2]
[332880161,1721619040154,-102.6327574,9.999e-05,2]
[332880162,1721619040169,-154.79103211,9.999e-05,2]
[332880163,1721619040180,-654.43697482,9.999e-05,2]
[332880164,1721619040190,-154.80649189,0.0001,2]
[332880165,1721619040199,-15430.6517229,0.00012343,2]
[332880166,1721619040211,-224.196729,0.00012469,2]
[332880167,1721619040222,-5304.84073988,0.0001327,2]
[332880168,1721619040233,-367.39222983,0.00013409,2]
[332880169,1721619040244,-2529.44735328,0.0001349,2]
[332880170,1721619040254,-153.0,0.000135,2]
[332880171,1721619040264,-8053.12222422,0.00013588,2]
[332880172,1721619040274,-32291.78326564,0.0001359,2]
[332880181,1721619046077,-5463.62927614,0.0001359,2]
[332880258,1721620240052,-462.64647124,9.999e-05,2]
[332880259,1721620240062,-941.58882029,9.999e-05,2]
[332880260,1721620240071,-154.79798758,9.999e-05,2]
[332880261,1721620240080,-229.13707776,9.999e-05,2]
[332880262,1721620240090,-154.79103211,9.999e-05,2]
[332880263,1721620240099,-290.33466492,9.999e-05,2]
[332880264,1721620240108,-154.79103211,9.999e-05,2]
[332880265,1721620240119,-208.54118651,9.999e-05,2]
[332880266,1721620240128,-188.02900327,9.999e-05,2]
[332880267,1721620240137,-392.40605053,9.999e-05,2]
[332880268,1721620240146,-413.45473308,9.999e-05,2]
[332880269,1721620240155,-1842.51778138,0.00013,2]
[332880270,1721620240166,-2218.6495401,0.00013,3]
[332880271,1721620240176,-5304.84073988,0.0001325,2]
[332880272,1721620240184,-2529.44735328,0.00013365,2]
[332880273,1721620240193,-367.39222983,0.0001337,2]
[332880274,1721620240202,-8053.12222422,0.0001339,2]
[332880275,1721620240211,-442.8614433,0.000134,2]
[332880276,1721620240221,-153.0,0.000134,2]
[332880277,1721620240230,-157.0367757,0.000134,2]
[332880278,1721620240239,-378.8959071,0.000134,2]
[332880279,1721620240248,-8053.12222421,0.00013415,2]
[332880280,1721620240257,-8053.12222421,0.0001344,2]
[332880281,1721620240266,-7779.25603924,0.00013465,2]
[332880336,1721620518796,35000.0,0.00025,120]
[332880341,1721621009112,199.12271201,0.00025,120]
[332880346,1721621279732,1000.0,0.00025,120]
[332880414,1721621438278,-155.05933763,9.999e-05,2]
[332880416,1721621438289,-157.07925344,9.999e-05,2]
[332880418,1721621438299,-155.18324813,9.999e-05,2]
[332880420,1721621438311,-234.24544219,9.999e-05,2]
[332880422,1721621438321,-208.54118651,9.999e-05,2]
[332880424,1721621438332,-186.78452237,9.999e-05,2]
[332880426,1721621438342,-577.77116592,9.999e-05,2]
[332880428,1721621438352,-413.45473308,9.999e-05,2]
[332880430,1721621438361,-188.02900327,9.999e-05,2]
[332880432,1721621438371,-154.77557542,9.999e-05,2]
[332880434,1721621438381,-392.40605053,9.999e-05,2]
[332880436,1721621438390,-285.09822457,0.0001,2]
[332880438,1721621438400,-14215.1988132,0.00012225,2]
[332880440,1721621438410,-224.196729,0.00012448,2]
[332880442,1721621438420,-2826.18978958,0.00013295,2]
[332880444,1721621438430,-367.39222983,0.0001331,2]
[332880446,1721621438440,-2000.0,0.0001337,2]
[332880447,1721621438452,-9249.97523551,0.0001338,2]
[332880449,1721621438462,-9249.97523549,0.00013385,2]
[332880451,1721621438472,-9249.97523549,0.0001339,2]
[332880453,1721621438482,-9249.97523549,0.00013395,2]
[332880455,1721621438492,-153.0,0.000134,2]
[332880457,1721621438502,-153.0,0.000134,2]
[332880458,1721621438512,-307.0842391,0.000134,2]
[332880459,1721621438521,-9249.97523549,0.000134,2]
[332880460,1721621438531,-5304.84073988,0.00013401,2]
[332880461,1721621438541,-202586.80281963,0.0001348,2]
[332880462,1721621438551,-153.0,0.000135,2]
[332880463,1721621438561,-153.0,0.000135,2]
[332880464,1721621438571,-153.0,0.000135,2]
[332880465,1721621438581,-153.0,0.000135,2]
[332880466,1721621438591,-153.5403828,0.000135,2]
[332880467,1721621438601,-153.0,0.000135,2]
[332880468,1721621438611,-153.0,0.000135,2]
[332880469,1721621438621,-293.8749366,0.000135,2]
[332880470,1721621438631,-153.0,0.000135,2]
[332880471,1721621438641,-292.5812205,0.000135,2]
[332880472,1721621438650,-153.0,0.000135,2]
[332880473,1721621438660,-153.0,0.000135,2]
[332880474,1721621438670,-153.0,0.000135,2]
[332880475,1721621438679,-153.0,0.000135,2]
[332880476,1721621438689,-153.0,0.000135,2]
[332880477,1721621438700,-153.0,0.000135,2]
[332880478,1721621438709,-590.4582758,0.000135,2]
[332880479,1721621438719,-306.0,0.000135,2]
[332880480,1721621438728,-306.0,0.000135,2]
[332880481,1721621438738,-153.0,0.000135,2]
[332880482,1721621438748,-157.0367757,0.000135,2]
[332880483,1721621438757,-477.5565825,0.00013551,2]
[332880484,1721621438768,-151.0,0.0001359,2]
[332880485,1721621438777,-152.291355,0.0001359,2]
[332880486,1721621438787,-154.274774,0.0001359,2]
[332880487,1721621438797,-151.0,0.0001359,2]
[332880488,1721621438807,-153.681858,0.0001359,2]
[332880489,1721621438816,-151.0,0.0001359,2]
[332880490,1721621438826,-83765.74199665,0.000136,2]
[332880491,1721621438835,-151.0,0.000136,2]
[332880492,1721621438845,-293.8749366,0.000136,2]
[332880493,1721621438856,-153.0,0.000136,2]
[332880494,1721621438866,-153.0,0.000136,2]
[332880495,1721621438876,-153.0,0.000136,2]
[332880496,1721621438886,-153.0,0.000136,2]
[332880497,1721621438897,-205.701333,0.000136,2]
[332880498,1721621438906,-293.8749366,0.000136,2]
[332880499,1721621438916,-153.0,0.000136,2]
[332880500,1721621438927,-153.0,0.000136,2]
[332880501,1721621438938,-153.0,0.000136,2]
[332880502,1721621438948,-153.0,0.000136,2]
[332880503,1721621438958,-293.8749366,0.000136,2]
[332880504,1721621438968,-293.8749366,0.000136,2]
[332880505,1721621438978,-153.0,0.000136,2]
[332880506,1721621438987,-153.0,0.000136,2]
[332880507,1721621438997,-153.0,0.000136,2]
[332880508,1721621439007,-151.358316,0.000136,2]
[332880509,1721621439016,-152.171668,0.000136,2]
[332880510,1721621439027,-151.0,0.000136,2]
[332880511,1721621439037,-151.311299,0.000136,2]
[332880512,1721621439047,-156.524409,0.000136,2]
[332880513,1721621439057,-306.0,0.000136,2]
[332880514,1721621439066,-151.0,0.000136,2]
[332880515,1721621439077,-151.0,0.000136,2]
[332880516,1721621439087,-300.0,0.000136,2]
[332880517,1721621439096,-300.0,0.000136,2]
[332880518,1721621439106,-319.651472,0.000136,2]
[332880519,1721621439116,-319.651472,0.000136,2]
[332880520,1721621439127,-172.855179,0.000136,2]
[332880521,1721621439137,-500.0,0.00013698,2]
[332880522,1721621439146,-500.0,0.00013698,2]
[332880523,1721621439156,-500.0,0.00013698,2]
[332880524,1721621439167,-500.0,0.00013698,2]
[332880525,1721621439177,-500.0,0.00013698,2]
[332880526,1721621439187,-500.0,0.00013698,2]
[332880527,1721621439198,-500.0,0.00013698,2]
[332880528,1721621439208,-232.33119763,0.00013698,2]
[332880529,1721621439218,-500.0,0.00013698,2]
[332880530,1721621439228,-500.0,0.00013698,2]
[332880531,1721621439239,-503.94716429,0.00013698,2]
[332880532,1721621439249,-500.0,0.00013698,2]
[332880533,1721621439259,-500.0,0.00013698,2]
[332880534,1721621439269,-500.0,0.00013698,2]
[332880535,1721621439279,-500.0,0.00013698,2]
[332880536,1721621439289,-500.0,0.00013698,2]
[332880537,1721621439299,-500.0,0.00013698,2]
[332880538,1721621439309,-500.0,0.00013698,2]
[332880539,1721621439319,-504.31067322,0.00013698,2]
[332880540,1721621439329,-374.15193267,0.00013698,2]
[332880541,1721621439338,-500.0,0.00013698,2]
[332880542,1721621439349,-202.55632502,0.00013698,2]
[332880543,1721621439359,-505.74011897,0.00013698,2]
[332880544,1721621439370,-349.1682991,0.00013698,2]
[332880545,1721621439380,-500.0,0.00013698,2]
[332880546,1721621439390,-1166.22,0.00013698,2]
[332880547,1721621439400,-500.0,0.00013698,2]
[332880548,1721621439410,-500.0,0.00013698,2]
[332880549,1721621439420,-500.0,0.00013698,2]
[332880550,1721621439430,-503.48151961,0.00013698,2]
[332880551,1721621439440,-503.32530299,0.00013698,2]
[332880552,1721621439450,-500.0,0.00013698,2]
[332880553,1721621439459,-504.28377671,0.00013698,2]
[332880554,1721621439469,-500.0,0.00013698,2]
[332880555,1721621439479,-500.0,0.00013698,2]
[332880556,1721621439488,-500.0,0.00013698,2]
[332880557,1721621439498,-500.0,0.00013698,2]
[332880558,1721621439507,-841.94,0.00013698,2]
[332880559,1721621439517,-841.94,0.00013698,2]
[332880560,1721621439526,-841.94,0.00013698,2]
[332880561,1721621439536,-841.94,0.00013698,2]
[332880562,1721621439546,-500.0,0.00013698,2]
[332880563,1721621439555,-841.94,0.00013698,2]
[332880564,1721621439565,-841.94,0.00013698,2]
[332880565,1721621439574,-841.94,0.00013698,2]
[332880566,1721621439583,-841.94,0.00013698,2]
[332880567,1721621439593,-500.0,0.00013698,2]
[332880568,1721621439603,-841.94,0.00013698,2]
[332880569,1721621439613,-500.0,0.00013698,2]
[332880571,1721621439622,-841.94,0.00013698,2]
[332880572,1721621439633,-841.94,0.00013698,2]
[332880573,1721621439643,-841.94,0.00013698,2]
[332880574,1721621439652,-503.02447703,0.00013698,2]
[332880575,1721621439662,-500.0,0.00013698,2]
[332880576,1721621439671,-500.0,0.00013698,2]
[332880577,1721621439681,-500.0,0.00013698,2]
[332880578,1721621439691,-500.0,0.00013698,2]
[332880579,1721621439702,-500.0,0.00013698,2]
[332880580,1721621439712,-500.0,0.00013698,2]
[332880581,1721621439722,-500.0,0.00013698,2]
[332880582,1721621439732,-500.0,0.00013698,2]
[332880583,1721621439743,-500.0,0.00013698,2]
[332880584,1721621439752,-503.8121749,0.00013698,2]
[332880585,1721621439764,-500.0,0.00013698,2]
[332880586,1721621439774,-500.0,0.00013698,2]
[332880587,1721621439783,-500.0,0.00013698,2]
[332880588,1721621439792,-500.0,0.00013698,2]
[332880589,1721621439804,-500.0,0.00013698,2]
[332880590,1721621439815,-500.0,0.00013698,2]
[332880591,1721621439826,-500.0,0.00013698,2]
[332880592,1721621439836,-500.0,0.00013698,2]
[332880593,1721621439847,-500.0,0.00013698,2]
[332880594,1721621439859,-500.0,0.00013698,2]
[332880595,1721621439871,-500.0,0.00013698,2]
[332880596,1721621439882,-500.0,0.00013698,2]
[332880597,1721621439892,-500.0,0.00013698,2]
[332880599,1721621439904,-500.0,0.00013698,2]
[332880600,1721621439914,-673.35,0.00013698,2]
[332880601,1721621439925,-500.0,0.00013698,2]
[332880602,1721621439935,-518.26231982,0.00013698,2]
[332880603,1721621439946,-500.0,0.00013698,2]
[332880604,1721621439955,-500.0,0.00013698,2]
[332880605,1721621439964,-500.0,0.00013698,2]
[332880606,1721621439974,-500.0,0.00013698,2]
[332880607,1721621439984,-412.15783446,0.00013698,2]
[332880608,1721621439993,-505.24936389,0.00013698,2]
[332880610,1721621440003,-500.0,0.00013698,2]
[332880611,1721621440012,-500.0,0.00013698,2]
[332880612,1721621440022,-724.15,0.00013698,2]
[332880613,1721621440032,-500.0,0.00013698,2]
[332880614,1721621440043,-724.15,0.00013698,2]
[332880615,1721621440053,-500.0,0.00013698,2]
[332880616,1721621440063,-724.15,0.00013698,2]
[332880617,1721621440073,-500.0,0.00013698,2]
[332880618,1721621440082,-724.15,0.00013698,2]
[332880619,1721621440092,-500.0,0.00013698,2]
[332880620,1721621440101,-724.15,0.00013698,2]
[332880621,1721621440111,-500.0,0.00013698,2]
[332880622,1721621440121,-724.15,0.00013698,2]
[332880623,1721621440130,-500.0,0.00013698,2]
[332880624,1721621440139,-724.15,0.00013698,2]
[332880625,1721621440149,-500.0,0.00013698,2]
[332880626,1721621440159,-500.0,0.00013698,2]
[332880627,1721621440169,-724.15,0.00013698,2]
[332880628,1721621440178,-500.0,0.00013698,2]
[332880629,1721621440187,-724.15,0.00013698,2]
[332880630,1721621440198,-500.0,0.00013698,2]
[332880631,1721621440207,-724.15,0.00013698,2]